[Event "*** Titled Tuesday Blitz"]
[Site "Chess.com"]
[Date "2020.05.26"]
[Round "4"]
[White "abhidabhi"]
[Black "Artem_Sadovsky"]
[Result "1-0"]
[WhiteElo "2731"]
[BlackElo "2515"]
[TimeControl "180+1"]
[EndTime "10:39:06 PDT"]
[Termination "abhidabhi won by checkmate"]

1. Nf3 {[%clk 0:03:00.9]} 1... g6 {[%clk 0:02:58.6]} 2. g3 {[%clk 0:02:59.9]}
2... Bg7 {[%clk 0:02:59.1]} 3. Bg2 {[%clk 0:03:00.4]} 3... e5 {[%clk 0:02:59.8]}
4. e4 {[%clk 0:02:59.4]} 4... Ne7 {[%clk 0:02:56.9]} 5. d3 {[%clk 0:02:58]} 5...
O-O {[%clk 0:02:57.4]} 6. O-O {[%clk 0:02:57.6]} 6... d5 {[%clk 0:02:57.1]} 7.
exd5 {[%clk 0:02:57.2]} 7... Nxd5 {[%clk 0:02:58]} 8. Nc3 {[%clk 0:02:56.2]}
8... Nxc3 {[%clk 0:02:56.4]} 9. bxc3 {[%clk 0:02:55.9]} 9... e4 {[%clk
0:02:56.4]} 10. dxe4 {[%clk 0:02:54.8]} 10... Bxc3 {[%clk 0:02:56.3]} 11. Rb1
{[%clk 0:02:47.2]} 11... Nc6 {[%clk 0:02:55.1]} 12. Bf4 {[%clk 0:02:44.8]} 12...
Qe7 {[%clk 0:02:50.8]} 13. e5 {[%clk 0:02:31.6]} 13... Nxe5 {[%clk 0:02:24.5]}
14. Nxe5 {[%clk 0:02:26.4]} 14... Bxe5 {[%clk 0:02:25.4]} 15. Re1 {[%clk
0:02:23.8]} 15... f6 {[%clk 0:02:26]} 16. Bxe5 {[%clk 0:02:00]} 16... fxe5
{[%clk 0:02:25.4]} 17. Qd5+ {[%clk 0:02:00.6]} 17... Qf7 {[%clk 0:02:12.1]} 18.
Rxe5 {[%clk 0:01:56.9]} 18... Qxd5 {[%clk 0:02:06.6]} 19. Bxd5+ {[%clk
0:01:56.4]} 19... Kg7 {[%clk 0:02:07.5]} 20. Re7+ {[%clk 0:01:56]} 20... Kf6
{[%clk 0:02:07.2]} 21. Rxc7 {[%clk 0:01:55.3]} 21... h5 {[%clk 0:01:56.3]} 22.
f4 {[%clk 0:01:41.9]} 22... Rb8 {[%clk 0:01:53.7]} 23. Re1 {[%clk 0:01:39.3]}
23... g5 {[%clk 0:01:21]} 24. fxg5+ {[%clk 0:01:05.3]} 24... Kxg5 {[%clk
0:01:21.9]} 25. h4+ {[%clk 0:01:00.6]} 25... Kh6 {[%clk 0:01:10.2]} 26. Ree7
{[%clk 0:00:57.3]} 26... Bf5 {[%clk 0:01:09.7]} 27. Be6 {[%clk 0:00:54.1]} 27...
Bg6 {[%clk 0:00:42.6]} 28. Rxb7 {[%clk 0:00:48]} 28... Bxc2 {[%clk 0:00:42.2]}
29. Rxb8 {[%clk 0:00:42.4]} 29... Rxb8 {[%clk 0:00:43.1]} 30. Rxa7 {[%clk
0:00:42.6]} 30... Be4 {[%clk 0:00:31]} 31. Kf2 {[%clk 0:00:41.3]} 31... Rf8+
{[%clk 0:00:13.9]} 32. Ke3 {[%clk 0:00:38.8]} 32... Bh1 {[%clk 0:00:14.6]} 33.
Bf7 {[%clk 0:00:35.5]} 33... Rb8 {[%clk 0:00:09.2]} 34. a4 {[%clk 0:00:33.8]}
34... Rb4 {[%clk 0:00:07.7]} 35. a5 {[%clk 0:00:33.2]} 35... Rg4 {[%clk
0:00:07.8]} 36. Kf2 {[%clk 0:00:32.1]} 36... Ra4 {[%clk 0:00:06.9]} 37. Bb3
{[%clk 0:00:21.7]} 37... Ra3 {[%clk 0:00:07.1]} 38. Bc2 {[%clk 0:00:20.7]} 38...
Rf3+ {[%clk 0:00:06.4]} 39. Ke2 {[%clk 0:00:20]} 39... Rf7 {[%clk 0:00:01.4]}
40. Rxf7 {[%clk 0:00:19.2]} 40... Be4 {[%clk 0:00:01.6]} 41. Rf6+ {[%clk
0:00:18.9]} 41... Kg7 {[%clk 0:00:01.7]} 42. Bxe4 {[%clk 0:00:18.9]} 42... Kxf6
{[%clk 0:00:01.2]} 43. a6 {[%clk 0:00:19.3]} 43... Kg7 {[%clk 0:00:02.1]} 44. a7
{[%clk 0:00:19.2]} 44... Kh6 {[%clk 0:00:03]} 45. a8=Q {[%clk 0:00:19.8]} 45...
Kg7 {[%clk 0:00:03.9]} 46. Qb7+ {[%clk 0:00:19.6]} 46... Kh6 {[%clk 0:00:04.8]}
47. Qh7# {[%clk 0:00:19.6]} 1-0

[Event "*** Titled Tuesday Blitz"]
[Site "Chess.com"]
[Date "2020.05.26"]
[Round "4"]
[White "northridgehawk"]
[Black "Savva09022009"]
[Result "0-1"]
[WhiteElo "2178"]
[BlackElo "2401"]
[TimeControl "180+1"]
[EndTime "10:39:06 PDT"]
[Termination "Savva09022009 won by resignation"]

1. e4 {[%clk 0:03:00.9]} 1... c5 {[%clk 0:02:59.6]} 2. Nf3 {[%clk 0:03:00.2]}
2... Nc6 {[%clk 0:02:55.5]} 3. d4 {[%clk 0:02:52.9]} 3... cxd4 {[%clk
0:02:56.4]} 4. c3 {[%clk 0:02:52.1]} 4... Nf6 {[%clk 0:02:54]} 5. e5 {[%clk
0:02:41.3]} 5... Nd5 {[%clk 0:02:47.8]} 6. Bc4 {[%clk 0:02:41.4]} 6... Nb6
{[%clk 0:02:47.5]} 7. Bb3 {[%clk 0:02:41.1]} 7... d6 {[%clk 0:02:47.4]} 8. exd6
{[%clk 0:02:40.8]} 8... Qxd6 {[%clk 0:02:46.3]} 9. O-O {[%clk 0:02:38.9]} 9...
g6 {[%clk 0:02:43.5]} 10. Na3 {[%clk 0:02:37.8]} 10... a6 {[%clk 0:02:41]} 11.
cxd4 {[%clk 0:02:35.5]} 11... Bg7 {[%clk 0:02:38.7]} 12. Be3 {[%clk 0:02:30]}
12... O-O {[%clk 0:02:36]} 13. d5 {[%clk 0:02:26]} 13... Ne5 {[%clk 0:02:33.1]}
14. Bxb6 {[%clk 0:02:18.1]} 14... Nxf3+ {[%clk 0:02:26.6]} 15. Qxf3 {[%clk
0:02:19]} 15... Qxb6 {[%clk 0:02:26.8]} 16. Rfe1 {[%clk 0:02:15.6]} 16... Bf5
{[%clk 0:02:18.8]} 17. Nc4 {[%clk 0:02:13.6]} 17... Qc5 {[%clk 0:02:14.8]} 18.
Rac1 {[%clk 0:02:10.1]} 18... Rad8 {[%clk 0:02:08.8]} 19. Ne3 {[%clk 0:02:08.6]}
19... Qd4 {[%clk 0:02:01.7]} 20. Nxf5 {[%clk 0:02:06.4]} 20... gxf5 {[%clk
0:02:02.6]} 21. Qxf5 {[%clk 0:02:05.4]} 21... Qxb2 {[%clk 0:02:03.5]} 22. Bc2
{[%clk 0:01:58.2]} 22... Rfe8 {[%clk 0:01:55]} 23. Qxh7+ {[%clk 0:01:56.9]}
23... Kf8 {[%clk 0:01:53.9]} 24. Bb3 {[%clk 0:01:56.4]} 24... Rd6 {[%clk
0:01:51.9]} 25. Qe4 {[%clk 0:01:40.6]} 25... Rf6 {[%clk 0:01:44.5]} 26. Qe3
{[%clk 0:01:34.7]} 26... Bh6 {[%clk 0:01:42.2]} 27. f4 {[%clk 0:01:10.9]} 27...
Bxf4 {[%clk 0:01:32.2]} 28. Qh3 {[%clk 0:01:08.7]} 28... Kg8 {[%clk 0:01:08.3]}
29. Rc2 {[%clk 0:00:41.1]} 29... Qd4+ {[%clk 0:01:05.7]} 30. Kh1 {[%clk
0:00:39]} 30... Rh6 {[%clk 0:01:01.1]} 31. Qg4+ {[%clk 0:00:38.3]} 31... Rg6
{[%clk 0:00:59.7]} 32. Qf3 {[%clk 0:00:36.7]} 32... Bd6 {[%clk 0:00:56.9]} 33.
Rce2 {[%clk 0:00:28.6]} 33... Qh4 {[%clk 0:00:55.6]} 34. h3 {[%clk 0:00:17.9]}
34... Rg3 {[%clk 0:00:51.7]} 35. Re4 {[%clk 0:00:15.9]} 35... Rxf3 {[%clk
0:00:37.9]} 36. Rxh4 {[%clk 0:00:14.3]} 36... Rg3 {[%clk 0:00:38.8]} 37. Ree4
{[%clk 0:00:13.6]} 37... Rc8 {[%clk 0:00:29.1]} 38. Reg4+ {[%clk 0:00:14.5]}
38... Rxg4 {[%clk 0:00:29]} 39. Rxg4+ {[%clk 0:00:14.7]} 39... Kf8 {[%clk
0:00:29.7]} 40. Rc4 {[%clk 0:00:13.4]} 40... Bc5 {[%clk 0:00:27.3]} 41. g4
{[%clk 0:00:13]} 41... b5 {[%clk 0:00:27.5]} 42. Rc2 {[%clk 0:00:12.3]} 42... a5
{[%clk 0:00:27.5]} 43. a3 {[%clk 0:00:08.9]} 43... a4 {[%clk 0:00:27.1]} 44. Ba2
{[%clk 0:00:09.1]} 44... Ke8 {[%clk 0:00:26.3]} 45. Kg2 {[%clk 0:00:09.6]} 45...
Kd7 {[%clk 0:00:26.5]} 46. Kf3 {[%clk 0:00:09.9]} 46... Bxa3 {[%clk 0:00:25.8]}
47. Rxc8 {[%clk 0:00:10.8]} 47... Kxc8 {[%clk 0:00:26.3]} 48. h4 {[%clk
0:00:11]} 48... b4 {[%clk 0:00:26.7]} 49. h5 {[%clk 0:00:11.9]} 49... b3 {[%clk
0:00:26]} 50. Bb1 {[%clk 0:00:12.2]} 50... Bb2 {[%clk 0:00:26.1]} 51. Ke3 {[%clk
0:00:11.8]} 51... a3 {[%clk 0:00:26.4]} 52. Kd3 {[%clk 0:00:12.1]} 52... a2
{[%clk 0:00:26.9]} 53. Kc4 {[%clk 0:00:10.6]} 0-1

[Event "*** Titled Tuesday Blitz"]
[Site "Chess.com"]
[Date "2020.05.26"]
[Round "4"]
[White "krzyzan94"]
[Black "heartofatiger"]
[Result "1-0"]
[WhiteElo "2699"]
[BlackElo "2495"]
[TimeControl "180+1"]
[EndTime "10:39:07 PDT"]
[Termination "krzyzan94 won on time"]

1. e4 {[%clk 0:03:00.9]} 1... Nf6 {[%clk 0:02:59.7]} 2. e5 {[%clk 0:03:00.6]}
2... Nd5 {[%clk 0:02:59.9]} 3. d4 {[%clk 0:03:00.6]} 3... d6 {[%clk 0:03:00.4]}
4. c4 {[%clk 0:02:58.8]} 4... Nb6 {[%clk 0:03:00.5]} 5. exd6 {[%clk 0:02:58.5]}
5... cxd6 {[%clk 0:03:01.2]} 6. Nc3 {[%clk 0:02:57.4]} 6... g6 {[%clk
0:03:01.9]} 7. Be3 {[%clk 0:02:57.6]} 7... Bg7 {[%clk 0:03:02.6]} 8. Rc1 {[%clk
0:02:57.8]} 8... O-O {[%clk 0:03:03.3]} 9. b3 {[%clk 0:02:58.2]} 9... N6d7
{[%clk 0:03:04]} 10. h4 {[%clk 0:02:57]} 10... e5 {[%clk 0:03:00.9]} 11. dxe5
{[%clk 0:02:50.3]} 11... dxe5 {[%clk 0:03:00.5]} 12. h5 {[%clk 0:02:47.1]} 12...
Nc6 {[%clk 0:03:00.7]} 13. hxg6 {[%clk 0:02:44.9]} 13... hxg6 {[%clk 0:03:00.4]}
14. Bh6 {[%clk 0:02:42.7]} 14... Bxh6 {[%clk 0:02:57.6]} 15. Rxh6 {[%clk
0:02:43.6]} 15... Nd4 {[%clk 0:02:41]} 16. Qd2 {[%clk 0:02:36.7]} 16... Nc5
{[%clk 0:02:31.8]} 17. Rh1 {[%clk 0:02:29.5]} 17... Nf5 {[%clk 0:02:00]} 18. Nd5
{[%clk 0:02:17.9]} 18... Ne4 {[%clk 0:02:00]} 19. Qd3 {[%clk 0:02:10.3]} 19...
Ng5 {[%clk 0:01:42.7]} 20. Rd1 {[%clk 0:01:58.7]} 20... Be6 {[%clk 0:01:39.4]}
21. Nf3 {[%clk 0:01:42.4]} 21... Bxd5 {[%clk 0:01:21.4]} 22. Nxg5 {[%clk
0:01:19.3]} 22... Qxg5 {[%clk 0:01:16.6]} 23. Qh3 {[%clk 0:01:12.2]} 23... Kg7
{[%clk 0:01:02.1]} 24. Qh7+ {[%clk 0:01:00.6]} 24... Kf6 {[%clk 0:01:02.1]} 25.
cxd5 {[%clk 0:01:00.6]} 25... Rh8 {[%clk 0:01:00.6]} 26. Qxh8+ {[%clk
0:01:00.9]} 26... Rxh8 {[%clk 0:00:59.4]} 27. Rxh8 {[%clk 0:01:01.8]} 27... Qf4
{[%clk 0:00:49.7]} 28. Bd3 {[%clk 0:00:45.7]} 28... e4 {[%clk 0:00:49.4]} 29. g3
{[%clk 0:00:14.7]} 29... Qe5 {[%clk 0:00:44.2]} 30. Be2 {[%clk 0:00:11.1]} 30...
e3 {[%clk 0:00:43]} 31. Rd3 {[%clk 0:00:04.8]} 31... Qa1+ {[%clk 0:00:29.6]} 32.
Bd1 {[%clk 0:00:05.2]} 32... exf2+ {[%clk 0:00:16.4]} 33. Kxf2 {[%clk
0:00:05.3]} 33... Qxa2+ {[%clk 0:00:16.9]} 34. Be2 {[%clk 0:00:05.6]} 34... Nd6
{[%clk 0:00:11.5]} 35. Rh4 {[%clk 0:00:03.6]} 35... Ke7 {[%clk 0:00:09]} 36. Rf4
{[%clk 0:00:03.1]} 36... f5 {[%clk 0:00:08.8]} 37. Rh4 {[%clk 0:00:03.2]} 37...
Ne4+ {[%clk 0:00:08.3]} 38. Ke3 {[%clk 0:00:03.9]} 38... Qc2 {[%clk 0:00:06.1]}
39. d6+ {[%clk 0:00:04.6]} 39... Ke6 {[%clk 0:00:05.5]} 40. Rxe4+ {[%clk
0:00:04]} 40... fxe4 {[%clk 0:00:05.1]} 41. Bg4+ {[%clk 0:00:04.9]} 41... Ke5
{[%clk 0:00:03.5]} 42. Rd1 {[%clk 0:00:04.8]} 42... Qc5+ {[%clk 0:00:02.2]} 43.
Ke2 {[%clk 0:00:04.8]} 43... Qc2+ {[%clk 0:00:01.5]} 44. Rd2 {[%clk 0:00:05.4]}
1-0

[Event "*** Titled Tuesday Blitz"]
[Site "Chess.com"]
[Date "2020.05.26"]
[Round "4"]
[White "Chessialist"]
[Black "Sam_ChessMood"]
[Result "1/2-1/2"]
[WhiteElo "2553"]
[BlackElo "2856"]
[TimeControl "180+1"]
[EndTime "10:39:09 PDT"]
[Termination "Game drawn - insufficient material"]

1. e4 {[%clk 0:03:00.9]} 1... c5 {[%clk 0:02:55.8]} 2. Nf3 {[%clk 0:03:00.9]}
2... d6 {[%clk 0:02:56.3]} 3. d4 {[%clk 0:03:01.1]} 3... cxd4 {[%clk 0:02:56.7]}
4. Qxd4 {[%clk 0:03:02]} 4... Nf6 {[%clk 0:02:56.5]} 5. e5 {[%clk 0:03:02]} 5...
Nc6 {[%clk 0:02:52.5]} 6. Bb5 {[%clk 0:03:02.1]} 6... Qa5+ {[%clk 0:02:35.6]} 7.
Nc3 {[%clk 0:03:01.7]} 7... Qxb5 {[%clk 0:02:35.9]} 8. Nxb5 {[%clk 0:03:01.4]}
8... Nxd4 {[%clk 0:02:36.2]} 9. Nbxd4 {[%clk 0:03:02.3]} 9... dxe5 {[%clk
0:02:31.3]} 10. Nxe5 {[%clk 0:03:03.2]} 10... Bd7 {[%clk 0:02:19.2]} 11. Bd2
{[%clk 0:03:00.8]} 11... e6 {[%clk 0:02:14.5]} 12. O-O-O {[%clk 0:03:00.7]}
12... Rc8 {[%clk 0:02:08]} 13. Kb1 {[%clk 0:02:52.2]} 13... Bc5 {[%clk
0:02:01.9]} 14. Bg5 {[%clk 0:02:48.9]} 14... h6 {[%clk 0:01:43]} 15. Bh4 {[%clk
0:02:13.8]} 15... g5 {[%clk 0:01:06.7]} 16. Bg3 {[%clk 0:02:13.6]} 16... Ne4
{[%clk 0:01:07.1]} 17. Rhe1 {[%clk 0:02:12.8]} 17... Nxg3 {[%clk 0:01:02.5]} 18.
hxg3 {[%clk 0:02:13.7]} 18... Bxd4 {[%clk 0:01:01.1]} 19. Rxd4 {[%clk
0:02:13.1]} 19... Bc6 {[%clk 0:01:01.5]} 20. Nxc6 {[%clk 0:02:05.3]} 20... Rxc6
{[%clk 0:01:01.2]} 21. c4 {[%clk 0:02:03]} 21... Ke7 {[%clk 0:00:59.2]} 22. b3
{[%clk 0:02:03.2]} 22... h5 {[%clk 0:00:55.3]} 23. Re3 {[%clk 0:01:49.9]} 23...
Rc7 {[%clk 0:00:53.6]} 24. Kb2 {[%clk 0:01:49.8]} 24... Kf6 {[%clk 0:00:50.1]}
25. b4 {[%clk 0:01:46.2]} 25... b6 {[%clk 0:00:48.6]} 26. Kb3 {[%clk 0:01:46.1]}
26... Rhc8 {[%clk 0:00:47.5]} 27. f4 {[%clk 0:01:35.7]} 27... gxf4 {[%clk
0:00:45.4]} 28. gxf4 {[%clk 0:01:36.6]} 28... Rg8 {[%clk 0:00:45]} 29. g3 {[%clk
0:01:36.7]} 29... Rg4 {[%clk 0:00:44]} 30. b5 {[%clk 0:01:27]} 30... h4 {[%clk
0:00:40.7]} 31. gxh4 {[%clk 0:01:26.6]} 31... Rxh4 {[%clk 0:00:41.6]} 32. a4
{[%clk 0:01:26.6]} 32... Rh1 {[%clk 0:00:35.5]} 33. Kb4 {[%clk 0:01:25.2]} 33...
Rb1+ {[%clk 0:00:34.8]} 34. Rb3 {[%clk 0:01:25]} 34... Rf1 {[%clk 0:00:34.8]}
35. a5 {[%clk 0:01:19.7]} 35... Kf5 {[%clk 0:00:33.6]} 36. axb6 {[%clk
0:01:19.3]} 36... axb6 {[%clk 0:00:34.5]} 37. Rc3 {[%clk 0:01:11.1]} 37... Rxf4
{[%clk 0:00:32.5]} 38. Rxf4+ {[%clk 0:01:11.1]} 38... Kxf4 {[%clk 0:00:33.4]}
39. c5 {[%clk 0:01:12]} 39... bxc5+ {[%clk 0:00:32.6]} 40. Ka5 {[%clk
0:00:58.8]} 40... e5 {[%clk 0:00:31.5]} 41. b6 {[%clk 0:00:58.9]} 41... Re7
{[%clk 0:00:28.6]} 42. Ka6 {[%clk 0:00:54]} 42... e4 {[%clk 0:00:24.9]} 43. Rxc5
{[%clk 0:00:54.1]} 43... f5 {[%clk 0:00:22]} 44. Rc7 {[%clk 0:00:42.2]} 44...
Re8 {[%clk 0:00:21.9]} 45. b7 {[%clk 0:00:40.5]} 45... Rb8 {[%clk 0:00:21.8]}
46. Rc8 {[%clk 0:00:37.7]} 46... Rxb7 {[%clk 0:00:22]} 47. Kxb7 {[%clk
0:00:38.6]} 47... Ke3 {[%clk 0:00:16.9]} 48. Kc6 {[%clk 0:00:36.5]} 48... f4
{[%clk 0:00:17.4]} 49. Kd5 {[%clk 0:00:37.1]} 49... f3 {[%clk 0:00:17.8]} 50.
Rc3+ {[%clk 0:00:37.3]} 50... Kf4 {[%clk 0:00:11.4]} 51. Kd4 {[%clk 0:00:32.6]}
51... f2 {[%clk 0:00:11.1]} 52. Rc8 {[%clk 0:00:33.3]} 52... Kf3 {[%clk
0:00:09.2]} 53. Rf8+ {[%clk 0:00:33.4]} 53... Ke2 {[%clk 0:00:09.6]} 54. Kxe4
{[%clk 0:00:33.3]} 54... f1=Q {[%clk 0:00:09.8]} 55. Rxf1 {[%clk 0:00:33.9]}
55... Kxf1 {[%clk 0:00:10.7]} 1/2-1/2

[Event "*** Titled Tuesday Blitz"]
[Site "Chess.com"]
[Date "2020.05.26"]
[Round "4"]
[White "atalz0"]
[Black "wnstop"]
[Result "1-0"]
[WhiteElo "2343"]
[BlackElo "2574"]
[TimeControl "180+1"]
[EndTime "10:39:09 PDT"]
[Termination "atalz0 won by checkmate"]

1. d4 {[%clk 0:03:00.9]} 1... Nf6 {[%clk 0:02:22.5]} 2. c4 {[%clk 0:03:00.5]}
2... g6 {[%clk 0:02:19.3]} 3. f3 {[%clk 0:03:00.1]} 3... Bg7 {[%clk 0:02:18.7]}
4. e4 {[%clk 0:03:00]} 4... O-O {[%clk 0:02:19.4]} 5. Nc3 {[%clk 0:03:00]} 5...
d6 {[%clk 0:02:19.8]} 6. Be3 {[%clk 0:03:00.2]} 6... Nc6 {[%clk 0:02:20.2]} 7.
Qd2 {[%clk 0:02:59.8]} 7... a6 {[%clk 0:02:20.4]} 8. O-O-O {[%clk 0:02:59.2]}
8... e5 {[%clk 0:02:18]} 9. d5 {[%clk 0:02:59]} 9... Nd4 {[%clk 0:02:17.5]} 10.
Nge2 {[%clk 0:02:59.5]} 10... c5 {[%clk 0:02:17.1]} 11. dxc6 {[%clk 0:02:59.2]}
11... Nxc6 {[%clk 0:02:09.6]} 12. Qxd6 {[%clk 0:02:58.1]} 12... Qa5 {[%clk
0:02:09.5]} 13. Qc5 {[%clk 0:02:44.2]} 13... Qxc5 {[%clk 0:01:45.2]} 14. Bxc5
{[%clk 0:02:45.1]} 14... Re8 {[%clk 0:01:46]} 15. Nd5 {[%clk 0:02:39.1]} 15...
Rb8 {[%clk 0:01:22.9]} 16. Bd6 {[%clk 0:02:29.1]} 16... Ra8 {[%clk 0:01:20.2]}
17. Nc7 {[%clk 0:02:28.1]} 17... Be6 {[%clk 0:01:20.8]} 18. Nxa8 {[%clk
0:02:21.1]} 18... Rxa8 {[%clk 0:01:21.7]} 19. Nc3 {[%clk 0:02:17.4]} 19... Nd7
{[%clk 0:01:19.5]} 20. Nd5 {[%clk 0:02:03.6]} 20... Nd4 {[%clk 0:01:14.8]} 21.
Kb1 {[%clk 0:01:52.3]} 21... f5 {[%clk 0:01:07.4]} 22. Bd3 {[%clk 0:01:50.5]}
22... Bf7 {[%clk 0:01:04.1]} 23. exf5 {[%clk 0:01:40.7]} 23... Bxd5 {[%clk
0:00:59.5]} 24. cxd5 {[%clk 0:01:27.3]} 24... gxf5 {[%clk 0:00:59.9]} 25. Rc1
{[%clk 0:01:16.8]} 25... Bf8 {[%clk 0:00:59.7]} 26. Bxf8 {[%clk 0:01:13.6]}
26... Kxf8 {[%clk 0:00:58.5]} 27. Rc7 {[%clk 0:01:12.3]} 27... Ke8 {[%clk
0:00:56]} 28. Rhc1 {[%clk 0:01:06.9]} 28... Ke7 {[%clk 0:00:52]} 29. Rxb7 {[%clk
0:01:04.8]} 29... Kd6 {[%clk 0:00:50.7]} 30. g4 {[%clk 0:00:38.9]} 30... fxg4
{[%clk 0:00:43.7]} 31. fxg4 {[%clk 0:00:39.8]} 31... Nc5 {[%clk 0:00:39.4]} 32.
Rb6+ {[%clk 0:00:35.8]} 32... Kxd5 {[%clk 0:00:38.2]} 33. Bc4+ {[%clk
0:00:32.6]} 33... Ke4 {[%clk 0:00:38.4]} 34. Rf6 {[%clk 0:00:26.8]} 34... Nd3
{[%clk 0:00:32.3]} 35. Rd1 {[%clk 0:00:20.5]} 35... Nf4 {[%clk 0:00:27.2]} 36.
Re1+ {[%clk 0:00:20.6]} 36... Kf3 {[%clk 0:00:24.1]} 37. Rxe5 {[%clk 0:00:20.7]}
37... Rc8 {[%clk 0:00:12.5]} 38. b3 {[%clk 0:00:20.1]} 38... a5 {[%clk
0:00:06.9]} 39. Re1 {[%clk 0:00:20.1]} 39... Kxg4 {[%clk 0:00:05.7]} 40. Re4
{[%clk 0:00:19.2]} 40... Kg5 {[%clk 0:00:02]} 41. Rfxf4 {[%clk 0:00:18.6]} 41...
Nc6 {[%clk 0:00:02.9]} 42. Rg4+ {[%clk 0:00:18.6]} 42... Kh5 {[%clk 0:00:03.5]}
43. Rg3 {[%clk 0:00:17.7]} 43... Nb4 {[%clk 0:00:03.1]} 44. Re7 {[%clk
0:00:17.3]} 44... h6 {[%clk 0:00:03]} 45. a3 {[%clk 0:00:16.4]} 45... Nc6 {[%clk
0:00:02.9]} 46. Reg7 {[%clk 0:00:16.1]} 46... Ne5 {[%clk 0:00:02.7]} 47. Rh3#
{[%clk 0:00:15.9]} 1-0

[Event "*** Titled Tuesday Blitz"]
[Site "Chess.com"]
[Date "2020.05.26"]
[Round "4"]
[White "FMOlexandrProhorov"]
[Black "mjray79"]
[Result "1/2-1/2"]
[WhiteElo "2076"]
[BlackElo "2284"]
[TimeControl "180+1"]
[EndTime "10:39:10 PDT"]
[Termination "Game drawn by repetition"]

1. e4 {[%clk 0:03:00.9]} 1... e5 {[%clk 0:02:59.8]} 2. Nf3 {[%clk 0:02:59]} 2...
Nc6 {[%clk 0:02:59.9]} 3. Bb5 {[%clk 0:02:56]} 3... a6 {[%clk 0:02:59.5]} 4.
Bxc6 {[%clk 0:02:55.7]} 4... dxc6 {[%clk 0:03:00.4]} 5. O-O {[%clk 0:02:55.1]}
5... Bg4 {[%clk 0:03:00.2]} 6. h3 {[%clk 0:02:55.5]} 6... h5 {[%clk 0:03:00.5]}
7. d3 {[%clk 0:02:53.9]} 7... Qf6 {[%clk 0:02:59.8]} 8. Nbd2 {[%clk 0:02:54]}
8... g5 {[%clk 0:02:59.6]} 9. Nc4 {[%clk 0:02:49.8]} 9... Bxf3 {[%clk 0:02:58]}
10. Qxf3 {[%clk 0:02:49.7]} 10... Qxf3 {[%clk 0:02:58.4]} 11. gxf3 {[%clk
0:02:50.1]} 11... f6 {[%clk 0:02:58.8]} 12. c3 {[%clk 0:02:48.1]} 12... Ne7
{[%clk 0:02:58.4]} 13. d4 {[%clk 0:02:40]} 13... exd4 {[%clk 0:02:46.4]} 14.
cxd4 {[%clk 0:02:39.8]} 14... O-O-O {[%clk 0:02:45.9]} 15. Be3 {[%clk
0:02:37.8]} 15... Ng6 {[%clk 0:02:41.7]} 16. Rfd1 {[%clk 0:02:10.6]} 16... Nh4
{[%clk 0:02:40]} 17. f4 {[%clk 0:02:10.9]} 17... gxf4 {[%clk 0:02:30.5]} 18.
Bxf4 {[%clk 0:02:05.7]} 18... Nf3+ {[%clk 0:02:30.4]} 19. Kf1 {[%clk 0:02:03.2]}
19... Nxd4 {[%clk 0:02:30.1]} 20. e5 {[%clk 0:01:55.9]} 20... Bh6 {[%clk
0:02:20.5]} 21. Bg3 {[%clk 0:01:48.8]} 21... Bg7 {[%clk 0:02:03.8]} 22. Rd3
{[%clk 0:01:43.3]} 22... fxe5 {[%clk 0:01:47.5]} 23. Nxe5 {[%clk 0:01:41.1]}
23... Rhe8 {[%clk 0:01:40.6]} 24. f4 {[%clk 0:01:34.9]} 24... Nf5 {[%clk
0:01:36.1]} 25. Rxd8+ {[%clk 0:01:32.2]} 25... Rxd8 {[%clk 0:01:37]} 26. Be1
{[%clk 0:01:24.6]} 26... Ne3+ {[%clk 0:01:17.2]} 27. Ke2 {[%clk 0:01:23.9]}
27... Nc2 {[%clk 0:01:13.7]} 28. Rc1 {[%clk 0:01:23.8]} 28... Nxe1 {[%clk
0:01:13.2]} 29. Rxe1 {[%clk 0:01:21.8]} 29... Bxe5 {[%clk 0:01:13.1]} 30. fxe5
{[%clk 0:01:21.6]} 30... Kd7 {[%clk 0:01:12.9]} 31. Ke3 {[%clk 0:01:17.5]} 31...
Ke6 {[%clk 0:01:12.3]} 32. Rg1 {[%clk 0:01:14.1]} 32... Kf5 {[%clk 0:00:58.3]}
33. Rg7 {[%clk 0:01:10.2]} 33... Kxe5 {[%clk 0:00:41.5]} 34. Rg5+ {[%clk
0:00:55.2]} 34... Kf6 {[%clk 0:00:38.8]} 35. Rxh5 {[%clk 0:00:54.8]} 35... Kg6
{[%clk 0:00:38.7]} 36. Rh4 {[%clk 0:00:52]} 36... Re8+ {[%clk 0:00:38.2]} 37.
Kd3 {[%clk 0:00:51.7]} 37... Re7 {[%clk 0:00:33.2]} 38. Rg4+ {[%clk 0:00:49.7]}
38... Kf5 {[%clk 0:00:31.7]} 39. Rg8 {[%clk 0:00:45.6]} 39... c5 {[%clk
0:00:30.2]} 40. h4 {[%clk 0:00:38.8]} 40... Rh7 {[%clk 0:00:29.1]} 41. Rg5+
{[%clk 0:00:38.2]} 41... Kf6 {[%clk 0:00:25.1]} 42. Rxc5 {[%clk 0:00:39.1]}
42... c6 {[%clk 0:00:23.3]} 43. Rc4 {[%clk 0:00:37.5]} 43... Kf5 {[%clk
0:00:22.1]} 44. Kc2 {[%clk 0:00:35.8]} 44... Rh6 {[%clk 0:00:22.3]} 45. Rd4
{[%clk 0:00:35.4]} 45... Ke5 {[%clk 0:00:21.4]} 46. Rg4 {[%clk 0:00:29.9]} 46...
Kf5 {[%clk 0:00:21.1]} 47. Rd4 {[%clk 0:00:29.5]} 47... b5 {[%clk 0:00:20.1]}
48. a3 {[%clk 0:00:29]} 48... a5 {[%clk 0:00:19.6]} 49. b4 {[%clk 0:00:28.1]}
49... a4 {[%clk 0:00:19.1]} 50. Kd3 {[%clk 0:00:25.9]} 50... Ke5 {[%clk
0:00:17.3]} 51. Rg4 {[%clk 0:00:25.7]} 51... Rd6+ {[%clk 0:00:16.2]} 52. Kc3
{[%clk 0:00:25.9]} 52... Rh6 {[%clk 0:00:16]} 53. Kd3 {[%clk 0:00:25.5]} 53...
Kf5 {[%clk 0:00:16.3]} 54. Rd4 {[%clk 0:00:25.2]} 54... Ke5 {[%clk 0:00:15.2]}
55. Re4+ {[%clk 0:00:24.3]} 55... Kd5 {[%clk 0:00:13.8]} 56. Rd4+ {[%clk
0:00:24.3]} 56... Ke5 {[%clk 0:00:13]} 1/2-1/2